Cogmind - Beta 10.2 *** ADVENTURER MODE // 2022.01.20 @ 13:13:05 Player: xerxia Result: Self-destructed Performance ------------- Evolutions (7) 3500 Regions Visited (13) 2600 Robots Destroyed (46) 230 Value Destroyed (1457) 1457 Prototype IDs (9) 180 Alien Tech Used (0) 0 Bonus (45) 45 TOTAL SCORE: 8012 Bonus ------- High Alert Combat Kills 38 Follower Combat Kills 7 Cogmind --------- Core Integrity 1144/1300 Matter 85/300 Energy 261/325 System Corruption 0% Temperature Cool (0) Movement Flying (71) Location -3/Research Parts ------- > --- POWER (2) -------- Antimatter Reactor > --- PROPULSION (9) --- Armored Medium Treads Armored Medium Treads Xenon Bombardment Thruster Field Propulsion Drive Field Propulsion Array Field Propulsion Array > --- UTILITY (8) ------ Improved Cooling System Medium Storage Unit Medium Storage Unit Advanced Weight Redist. System Advanced Weight Redist. System > --- WEAPON (2) ------- (None) > --- INVENTORY (12) --- Micro Nuclear Core Advanced Heavy Treads Improved Linear Gravjet Impulse Thruster Impulse Thruster Array Advanced Weight Redist. System Peak State ------------ > --- POWER ------------ Antimatter Reactor Light Antimatter Reactor > --- PROPULSION ------- Armored Medium Treads Armored Medium Treads VTOL Module Xenon Bombardment Thruster Xenon Bombardment Thruster Xenon Bombardment Thruster Field Propulsion Drive Field Propulsion Array > --- UTILITY ---------- Improved Cooling System Medium Storage Unit Medium Storage Unit Advanced Weight Redist. System Advanced Weight Redist. System Improved Maneuvering Thrusters Improved Light Armor Plating Improved Hacking Suite > --- WEAPON ----------- Shock Bomb Launcher > --- INVENTORY -------- Micro Nuclear Core Advanced Heavy Treads Improved Linear Gravjet Field Propulsion Array Impulse Thruster Array Advanced Weight Redist. System [Rating: 94] Favorites ----------- Power Micro Nuclear Core Engine Ion Engine Power Core Micro Nuclear Core Reactor Light Antimatter Reactor Propulsion Aluminum Leg Treads Armored Medium Treads Leg Aluminum Leg Hover Unit Gravmag Array Flight Unit VTOL Module Utility Advanced Weight Redist. System Device Advanced Weight Redist. System Storage Small Storage Unit Hackware Improved Hacking Suite Protection Improved Light Armor Plating Weapon Mining Claw Energy Gun Heavy EM Pulse Gun Energy Cannon Light EM Pulse Cannon Ballistic Gun Light Assault Rifle Launcher Shock Bomb Launcher Special Weapon Plasma Cutter Slashing Weapon Mining Claw Build | -11 -10 -9 -9 -8 -7 -7 -7 -6 -6 -6 -5 -4 -3 ------- Run | Scr Mat Mat Sto Mat Fac Was Fac Fac Low Low Fac Fac Res Slots Evolved 14 | . . 2 . 2 2 . . 2 . . 2 2 2 Power 1 | . . . . . 1 . . . . . . . . Propulsion 7 | . . 2 . 1 1 . . 1 . . 1 . 1 Utility 6 | . . . . 1 . . . 1 . . 1 2 1 Weapon . | . . . . . . . . . . . . . . Parts Attached 68 | 6 2 2 3 16 3 . 1 13 1 . 2 15 4 Power 10 | 1 . . . 2 1 . . 3 . . . 2 1 Engine 5 | 1 . . . 1 . . . 3 . . . . . Core 2 | . . . . 1 1 . . . . . . . . Reactor 3 | . . . . . . . . . . . . 2 1 Propulsion 31 | 2 . 2 1 8 1 . . 8 1 . 1 5 2 Treads 2 | . . . . . . . . . . . . 1 1 Leg 7 | 2 . 2 1 1 1 . . . . . . . . Wheel . | . . . . . . . . . . . . . . Hover 1 | . . . . . . . . . . . . 1 . Flight 21 | . . . . 7 . . . 8 1 . 1 3 1 Utility 17 | 1 1 . . 3 1 . 1 2 . . 1 6 1 Device 10 | . . . . 2 1 . 1 1 . . 1 4 . Storage 4 | 1 1 . . . . . . 1 . . . 1 . Processor . | . . . . . . . . . . . . . . Hackware 1 | . . . . . . . . . . . . . 1 Protection 2 | . . . . 1 . . . . . . . 1 . Artifact . | . . . . . . . . . . . . . . Weapon 10 | 2 1 . 2 3 . . . . . . . 2 . Energy Gun 2 | 1 . . 1 . . . . . . . . . . Energy Cannon 3 | . 1 . 1 1 . . . . . . . . . Ballistic Gun 1 | 1 . . . . . . . . . . . . . Ballistic Cannon . | . . . . . . . . . . . . . . Launcher 2 | . . . . . . . . . . . . 2 . Special Weapon 1 | . . . . 1 . . . . . . . . . Impact Weapon . | . . . . . . . . . . . . . . Slashing Weapon 1 | . . . . 1 . . . . . . . . . Piercing Weapon . | . . . . . . . . . . . . . . Special Melee Weapon . | . . . . . . . . . . . . . . Unidentified Prototypes 1 | . . . . . . . . 1 . . . . . Parts Lost 20 | . . . . 1 . . . 3 2 1 2 3 8 Power 2 | . . . . . . . . . . . . . 2 Propulsion 11 | . . . . 1 . . . 3 1 1 2 1 2 Utility 5 | . . . . . . . . . 1 . . 1 3 Weapon 2 | . . . . . . . . . . . . 1 1 Highest Loss Streak 6 | . . . . 1 . . . 2 2 1 2 2 6 Average Slot Usage (%) 91 | . 93 100 100 92 97 100 100 87 88 83 71 86 82 Engine 7 | . 14 11 11 8 . . . 5 13 13 11 5 . Core 3 | . . . . . 13 15 15 6 . . . . . Reactor 1 | . . . . . . . . . . . . 5 8 Leg 16 | . 28 44 44 33 7 7 7 4 . . . . . Flight 21 | . . . . 8 38 38 38 34 46 43 34 30 26 Device 10 | . . . . 3 13 15 15 19 15 13 13 20 16 Storage 12 | . 22 22 22 16 7 7 7 6 6 6 5 7 9 Protection 1 | . . . . 2 . . . . . . . 5 3 Energy Gun 1 | . 1 . 8 . . . . . . . . . . Energy Cannon 5 | . 12 11 11 8 7 7 7 2 . . . . . Ballistic Gun 2 | . 14 11 2 . . . . . . . . . . Slashing Weapon 3 | . . . . 1 7 7 7 6 6 6 5 5 . Naked Turns . | . . . . . . . . . . . . . . Heaviest Build 59 | 12 30 30 32 37 26 26 27 34 34 33 34 59 57 Greatest Support 78 | 20 20 40 40 50 29 29 29 43 36 41 38 67 78 Greatest Overweight (x) 2 | 2 1 . . . . . . 1 . 1 . 2 . Average Overweight (x) . | . . . . . . . . . . . . . . Largest Inventory Capacity 12 | 6 12 12 12 12 6 6 6 8 8 8 8 12 12 Average Capacity 9 | 5 9 12 12 11 6 6 6 6 8 8 8 10 12 Most Carried 12 | 5 9 12 12 12 6 5 6 8 8 7 8 11 10 Average Carried 7 | 2 7 8 11 10 4 5 5 6 7 7 6 8 8 Final Capacity 12 | 6 12 12 12 6 6 6 6 8 8 8 8 12 12 Final Carried 12 | 1 9 12 12 5 5 5 6 8 7 7 6 7 8 Class Distribution -------------------- 49% | Mutant 28% | Scavenger-Mutant 11% | Scavenger-Sprinter 7% | Hacker-Mutant 3% | Sprinter Dominant Class ---------------- Mutant | -10/Materials Mutant | -9/Materials Mutant | -9/Storage Mutant | -8/Materials Scavenger-Mutant | -7/Factory Scavenger-Mutant | -7/Waste Scavenger-Mutant | -7/Factory Scavenger-Mutant | -6/Factory Scavenger-Sprinter | -6/Lower Caves Scavenger-Sprinter | -6/Lower Caves Scavenger-Sprinter | -5/Factory Mutant | -4/Factory Hacker-Mutant | -3/Research Resources | -11 -10 -9 -9 -8 -7 -7 -7 -6 -6 -6 -5 -4 -3 ----------- Run | Scr Mat Mat Sto Mat Fac Was Fac Fac Low Low Fac Fac Res Matter Collected 789 | 184 83 41 191 32 82 . 81 95 . . . . . Remotely . | . . . . . . . . . . . . . . Salvage Created 1440 | . 83 180 430 160 . . . 263 . . . 141 183 Parts 91 | . 4 11 35 13 . . . 12 . . . 7 9 Haulers Intercepted . | . . . . . . . . . . . . . . Recyclers Shooed 1 | . . . . . . . . 1 . . . . . Parts Field Recycled . | . . . . . . . . . . . . . . Retrieved Matter . | . . . . . . . . . . . . . . Parts Self-Destructed . | . . . . . . . . . . . . . . Prevented . | . . . . . . . . . . . . . . Kills | -11 -10 -9 -9 -8 -7 -7 -7 -6 -6 -6 -5 -4 -3 ------- Run | Scr Mat Mat Sto Mat Fac Was Fac Fac Low Low Fac Fac Res Combat Hostiles Destroyed 44 | . 2 4 14 5 . . . 6 . . . 8 5 Melee 6 | . . . . . . . . 6 . . . . . Guns 5 | . . 1 4 . . . . . . . . . . Cannons 19 | . 2 3 9 5 . . . . . . . . . AOE 13 | . . . . . . . . . . . . 8 5 Classes Destroyed 5 | . 1 1 1 . . . . 1 . . . 1 . Worker 1 | . . . . . . . . . . . . 1 . Recycler 1 | . . . . . . . . 1 . . . . . Swarmer 30 | . . . 8 3 . . . 6 . . . 8 5 Grunt 10 | . 2 3 4 1 . . . . . . . . . Sentry 4 | . . 1 2 1 . . . . . . . . . Best Kill Streak 7 | . 2 2 7 4 . . . 4 . . . 7 5 Combat Bots Only 7 | . 2 2 7 4 . . . 4 . . . 6 5 Max Kills in Single Turn 5 | . 1 1 1 1 . . . 1 . . . 5 4 Gunslinging . | . . . . . . . . . . . . . . Exploded 4 | . . . . . . . . . . . . 4 4 Melee 1 | . . . . . . . . 1 . . . . . Uniques/NPCs Destroyed . | . . . . . . . . . . . . . . Combat | -11 -10 -9 -9 -8 -7 -7 -7 -6 -6 -6 -5 -4 -3 -------- Run | Scr Mat Mat Sto Mat Fac Was Fac Fac Low Low Fac Fac Res Damage Taken 3129 | . 17 48 356 241 56 . 26 551 151 72 60 443 1108 Core 496 | . 8 . 59 27 . . . 201 9 . 16 20 156 Absorbed by Shields 31 | . . . . 18 . . . . . . . . 13 Core Remaining (%) 93 | 100 96 . 85 95 . . 100 . . 75 98 98 . Volleys Fired 50 | . 3 5 19 12 . . . . . . . 4 7 Largest 2 | . 2 2 2 2 . . . . . . . 1 1 Hottest 101 | . 76 76 101 76 . . . . . . . 36 36 Shots Fired 83 | . 6 10 38 18 . . . . . . . 4 7 Gun 27 | . 3 5 19 . . . . . . . . . . Cannon 39 | . 3 5 19 12 . . . . . . . . . Launcher 11 | . . . . . . . . . . . . 4 7 Special 6 | . . . . 6 . . . . . . . . . Kinetic 19 | . 3 5 11 . . . . . . . . . . Thermal 6 | . . . . 6 . . . . . . . . . Explosive . | . . . . . . . . . . . . . . Electromagnetic 58 | . 3 5 27 12 . . . . . . . 4 7 Robot Hit Streak 18 | . 4 11 18 15 . . . . . . . 3 7 Robot Miss Streak 2 | . . . 1 1 . . . . . . . 1 2 Penetration Max . | . . . . . . . . . . . . . . Secondary Targets . | . . . . . . . . . . . . . . Shots Hit Robots 79 | . 4 7 26 15 . . . 19 . . . 3 5 Core Hits 59 | . 3 4 14 8 . . . 8 . . . 12 10 Critical Hits 3 | . . 1 . 1 . . . 1 . . . . . Critical Kills 2 | . . 1 . 1 . . . . . . . . . Critical Parts Destroyed 1 | . . . . . . . . 1 . . . . . Melee Attacks 27 | . . . . . . . . 27 . . . . . Impact . | . . . . . . . . . . . . . . Slashing 27 | . . . . . . . . 27 . . . . . Piercing . | . . . . . . . . . . . . . . Sneak Attacks 1 | . . . . . . . . 1 . . . . . Combat Hostiles . | . . . . . . . . . . . . . . Follow-up Attacks . | . . . . . . . . . . . . . . Damage Inflicted 2653 | . 76 130 412 271 . . . 482 . . . 854 428 Guns 154 | . 7 15 132 . . . . . . . . . . Cannons 688 | . 69 115 280 224 . . . . . . . . . Explosions 1282 | . . . . . . . . . . . . 854 428 Melee 482 | . . . . . . . . 482 . . . . . Ramming . | . . . . . . . . . . . . . . Kinetic 63 | . 7 15 41 . . . . . . . . . . Thermal 917 | . . . . 47 . . . . . . . 703 167 Explosive . | . . . . . . . . . . . . . . Electromagnetic 1191 | . 69 115 371 224 . . . . . . . 151 261 Impact . | . . . . . . . . . . . . . . Slashing 482 | . . . . . . . . 482 . . . . . Piercing . | . . . . . . . . . . . . . . Highest Corruption 3 | . . . . . . . . . . . 3 1 . Average Corruption 1 | . . . . . . . . . . . 3 1 . Corruption Purged . | . . . . . . . . . . . . . . Effects 1 | . . . . . . . . . . . 1 . . Energy Discharges 1 | . . . . . . . . . . . 1 . . Overload Shots . | . . . . . . . . . . . . . . Overflow Damage 156 | . . . 20 . . . . 37 . . . 87 12 Projectiles 20 | . . . 20 . . . . . . . . . . Explosions 99 | . . . . . . . . . . . . 87 12 Melee 37 | . . . . . . . . 37 . . . . . Knockbacks . | . . . . . . . . . . . . . . Impact . | . . . . . . . . . . . . . . Kinetic . | . . . . . . . . . . . . . . Secondary . | . . . . . . . . . . . . . . Self-Inflicted Damage 16 | . . . . . . . . . . . . . 16 Shots 1 | . . . . . . . . . . . . . 1 Rammed . | . . . . . . . . . . . . . . Targets Rammed . | . . . . . . . . . . . . . . Kicked . | . . . . . . . . . . . . . . Crushed . | . . . . . . . . . . . . . . Highest Temperature 228 | . 94 43 228 80 . . . . . 2 . 13 . Average Temperature 77 | . 46 19 104 34 . . . . . 2 . 13 . Received Heat Transfer 540 | . 12 27 111 63 . . 12 24 6 27 27 57 174 Siege Activations . | . . . . . . . . . . . . . . Robots Corrupted 1 | . . . 1 . . . . . . . . . . Combat Hostiles 1 | . . . 1 . . . . . . . . . . Parts Fried 6 | . . . 3 2 . . . . . . . . 1 Impact Corruptions . | . . . . . . . . . . . . . . Robots Melted . | . . . . . . . . . . . . . . Combat Hostiles . | . . . . . . . . . . . . . . Parts Melted 3 | . . . . 2 . . . . . . . 1 . Heat Transferred 798 | . . . . 148 . . . . . . . 550 100 Parts Sabotaged . | . . . . . . . . . . . . . . Parts Stolen . | . . . . . . . . . . . . . . Parts Stripped . | . . . . . . . . . . . . . . Power Chain Reactions 3 | . . . . . . . . . . . . 1 2 Missiles Intercepted . | . . . . . . . . . . . . . . Alert | -11 -10 -9 -9 -8 -7 -7 -7 -6 -6 -6 -5 -4 -3 ------- Run | Scr Mat Mat Sto Mat Fac Was Fac Fac Low Low Fac Fac Res Peak Influence 698 | . 68 179 467 370 229 96 179 471 . . 175 698 486 Initial 312 | . . 24 64 168 140 66 59 75 . . 160 71 312 Average 212 | . 26 96 265 247 161 86 100 309 . . 168 206 409 Maximum Alert Level 2 | . . . 2 1 1 . . 2 . . . 2 2 Low Security (%) 58 | 100 100 100 26 34 88 100 100 20 . . 100 88 . Level 1 22 | . . . 41 65 11 . . 36 . . . 1 29 Level 2 18 | . . . 32 . . . . 42 . . . 9 70 Level 3 . | . . . . . . . . . . . . . . Level 4 . | . . . . . . . . . . . . . . Level 5 . | . . . . . . . . . . . . . . High Security . | . . . . . . . . . . . . . . Max Security . | . . . . . . . . . . . . . . Squads Dispatched 12 | . 1 3 . . 1 . . 1 . 1 1 3 1 Investigation 5 | . 1 1 . . . . . . . . 1 2 . Extermination . | . . . . . . . . . . . . . . Reinforcement 5 | . . 2 . . 1 . . 1 . . . . 1 Assault 2 | . . . . . . . . . . 1 . 1 . Garrison . | . . . . . . . . . . . . . . Intercept . | . . . . . . . . . . . . . . Construction Impeded . | . . . . . . . . . . . . . . Haulers Reinforced . | . . . . . . . . . . . . . . Stealth | -11 -10 -9 -9 -8 -7 -7 -7 -6 -6 -6 -5 -4 -3 --------- Run | Scr Mat Mat Sto Mat Fac Was Fac Fac Low Low Fac Fac Res Distress Signals 6 | . . 2 1 1 . . . . . . . 2 . Communications Jammed . | . . . . . . . . . . . . . . Distress Signals . | . . . . . . . . . . . . . . Times Spotted 154 | . 3 9 21 12 6 4 7 23 5 13 11 20 20 Peak Tracking Total 11 | . 2 5 8 6 5 4 5 11 5 9 10 8 11 Tactical Retreats 16 | . . . . 1 . . 3 6 1 2 . 2 1 Traps | -11 -10 -9 -9 -8 -7 -7 -7 -6 -6 -6 -5 -4 -3 ------- Run | Scr Mat Mat Sto Mat Fac Was Fac Fac Low Low Fac Fac Res Traps Triggered 8 | . . . . . 2 . . 1 . . 1 3 1 Indirectly 2 | . . . . . . . . . . . . 2 . Trap Hack Attempts . | . . . . . . . . . . . . . . Triggered . | . . . . . . . . . . . . . . Disarmed . | . . . . . . . . . . . . . . Reprogrammed . | . . . . . . . . . . . . . . Reused . | . . . . . . . . . . . . . . Traps Extracted . | . . . . . . . . . . . . . . Installed . | . . . . . . . . . . . . . . Triggered . | . . . . . . . . . . . . . . Machines | -11 -10 -9 -9 -8 -7 -7 -7 -6 -6 -6 -5 -4 -3 ---------- Run | Scr Mat Mat Sto Mat Fac Was Fac Fac Low Low Fac Fac Res Machines Disabled 12 | . . . . 1 . . . . . . . 11 . Max in Single Turn 9 | . . . . 1 . . . . . . . 9 . Garrison Access 1 | . . . . . . . . . . . . 1 . Machines Sabotaged . | . . . . . . . . . . . . . . Garrisons Compromised . | . . . . . . . . . . . . . . Overloaded Fab Kills . | . . . . . . . . . . . . . . Fab Network Shutdowns . | . . . . . . . . . . . . . . Hacking | -11 -10 -9 -9 -8 -7 -7 -7 -6 -6 -6 -5 -4 -3 --------- Run | Scr Mat Mat Sto Mat Fac Was Fac Fac Low Low Fac Fac Res Machines Accessed 11 | . 1 3 1 1 1 . . 1 . . 1 2 . Terminals 9 | . 1 3 1 1 1 . . 1 . . . 1 . Fabricators 1 | . . . . . . . . . . . . 1 . Repair Stations . | . . . . . . . . . . . . . . Recycling Units . | . . . . . . . . . . . . . . Scanalyzers . | . . . . . . . . . . . . . . Garrison Access 1 | . . . . . . . . . . . 1 . . Total Hacks 27 | . 4 9 2 2 2 . . 2 . . 2 4 . Successful 15 | . 2 4 2 2 1 . . 1 . . . 3 . Failed 12 | . 2 5 . . 1 . . 1 . . 2 1 . Catastrophic 4 | . 1 1 . . . . . . . . 1 1 . Database Lockouts . | . . . . . . . . . . . . . . Manual 10 | . 1 5 1 1 1 . . . . . . 1 . Terminals 24 | . 4 9 2 2 2 . . 2 . . . 3 . Fabricators 1 | . . . . . . . . . . . . 1 . Repair Stations . | . . . . . . . . . . . . . . Recycling Units . | . . . . . . . . . . . . . . Scanalyzers . | . . . . . . . . . . . . . . Garrison Access 2 | . . . . . . . . . . . 2 . . Terminal Hacks 14 | . 2 4 2 2 1 . . 1 . . . 2 . Record 1 | . . 1 . . . . . . . . . . . Prototype ID Bank 5 | . . 2 1 1 . . . . . . . 1 . Level Access Points 3 | . . 1 1 1 . . . . . . . . . Emergency Access Points 2 | . 1 . . . . . . 1 . . . . . Recall Investigation 2 | . . . . . 1 . . . . . . 1 . Zone Layout 1 | . 1 . . . . . . . . . . . . Fabricator Hacks 1 | . . . . . . . . . . . . 1 . Build 1 | . . . . . . . . . . . . 1 . Repair Station Hacks . | . . . . . . . . . . . . . . Recycling Unit Hacks . | . . . . . . . . . . . . . . Scanalyzer . | . . . . . . . . . . . . . . Garrison Access Hacks . | . . . . . . . . . . . . . . Unauthorized Hacks . | . . . . . . . . . . . . . . Terminals . | . . . . . . . . . . . . . . Fabricators . | . . . . . . . . . . . . . . Repair Stations . | . . . . . . . . . . . . . . Recycling Units . | . . . . . . . . . . . . . . Scanalyzers . | . . . . . . . . . . . . . . Garrison Access . | . . . . . . . . . . . . . . Data Cores Recovered . | . . . . . . . . . . . . . . Used . | . . . . . . . . . . . . . . Hacking Detections 10 | . 1 3 1 1 1 . . 1 . . 1 1 . Full Trace Events 4 | . 1 1 . . . . . . . . 1 1 . Feedback Events 1 | . . . . . . . . . . . . 1 . Corruption 1 | . . . . . . . . . . . . 1 . Feedback Blocked . | . . . . . . . . . . . . . . Robot Schematics Acquired . | . . . . . . . . . . . . . . Robots Built 2 | . . . . . . . . . . . . 2 . Matter 285 | . . . . . . . . . . . . 285 . Time 50 | . . . . . . . . . . . . 50 . Total Robot Build Rating 10 | . . . . . . . . . . . . 10 . Part Schematics Acquired . | . . . . . . . . . . . . . . Parts Built . | . . . . . . . . . . . . . . Matter . | . . . . . . . . . . . . . . Time . | . . . . . . . . . . . . . . Total Part Build Rating . | . . . . . . . . . . . . . . Parts Repaired . | . . . . . . . . . . . . . . Time . | . . . . . . . . . . . . . . Parts Recycled . | . . . . . . . . . . . . . . Recycled Matter . | . . . . . . . . . . . . . . Retrieved Matter . | . . . . . . . . . . . . . . Retrieved Components . | . . . . . . . . . . . . . . Parts Scanalyzed . | . . . . . . . . . . . . . . Part Schematics Acquired . | . . . . . . . . . . . . . . Parts Damaged . | . . . . . . . . . . . . . . Bothacking | -11 -10 -9 -9 -8 -7 -7 -7 -6 -6 -6 -5 -4 -3 ------------ Run | Scr Mat Mat Sto Mat Fac Was Fac Fac Low Low Fac Fac Res Used RIF Installer . | . . . . . . . . . . . . . . Robots Hacked . | . . . . . . . . . . . . . . Non-combat . | . . . . . . . . . . . . . . Combat . | . . . . . . . . . . . . . . Robot Hacks Applied . | . . . . . . . . . . . . . . Relay Couplers Released 1 | . . . . . . . . . . . . 1 . Machine Destruction 1 | . . . . . . . . . . . . 1 . Robots Rewired 1 | . . . . 1 . . . . . . . . . Allies Hacked . | . . . . . . . . . . . . . . Hacks Repelled . | . . . . . . . . . . . . . . Allies | -11 -10 -9 -9 -8 -7 -7 -7 -6 -6 -6 -5 -4 -3 -------- Run | Scr Mat Mat Sto Mat Fac Was Fac Fac Low Low Fac Fac Res Total Allies 3 | . . . . 1 . . . . . . . 2 . Largest Group 2 | . . . . 1 . . . . . . . 2 . Highest-Rated Group 28 | . . . . 15 . . . . . . . 28 . Highest-Rated Ally 15 | . . . . 15 . . . . . . . 14 . Total Orders . | . . . . . . . . . . . . . . Ally Attacks 3 | . . . . 3 . . . . . . . . . Total Damage 29 | . . . . 29 . . . . . . . . . Kills 1 | . . . . 1 . . . . . . . . . Allies Corrupted . | . . . . . . . . . . . . . . Allies Melted . | . . . . . . . . . . . . . . Intel | -11 -10 -9 -9 -8 -7 -7 -7 -6 -6 -6 -5 -4 -3 ------- Run | Scr Mat Mat Sto Mat Fac Was Fac Fac Low Low Fac Fac Res Robot Analysis Total . | . . . . . . . . . . . . . . Derelict Logs Recovered 2 | . . . . . . . . . 1 1 . . . Drone Launches . | . . . . . . . . . . . . . . Drone Recoveries . | . . . . . . . . . . . . . . Exploration | -11 -10 -9 -9 -8 -7 -7 -7 -6 -6 -6 -5 -4 -3 ------------- Run | Scr Mat Mat Sto Mat Fac Was Fac Fac Low Low Fac Fac Res Turns Passed 2578 | 51 194 165 345 297 145 48 145 359 101 87 66 384 191 Spaces Moved 3570 | 32 125 103 212 183 305 107 311 519 307 309 225 581 251 Core 111 | 14 . . . . . . . . . . . 97 . Treads . | . . . . . . . . . . . . . . Legs 619 | 18 125 103 212 134 9 . 14 4 . . . . . Wheels . | . . . . . . . . . . . . . . Hover 53 | . . . . . . . . . . . . 53 . Flight 2787 | . . . . 49 296 107 297 515 307 309 225 431 251 Fastest Speed 22 | 50 120 120 120 28 28 38 38 22 22 22 28 25 65 Average Speed 53 | 122 135 120 120 95 40 38 42 33 22 25 28 54 66 Slowest Speed 150 | 150 150 120 120 120 130 38 130 130 22 105 28 150 71 Overloaded Moves . | . . . . . . . . . . . . . . Propulsion Burnouts . | . . . . . . . . . . . . . . Robots Hopped 49 | . . . . 1 5 . 3 8 3 6 . 7 16 Cave-ins Triggered . | . . . . . . . . . . . . . . Exploration Rate (%) 26 | 3 28 12 59 21 16 68 15 21 59 36 10 19 10 Regions Visited 13 Branch Regions 3 Pre-discovered Areas 1 | . . . 1 . . . . . . . . . . Known Exits Taken 3 | . . . 1 1 . . . . . . 1 . . Unknown Exits Taken 8 | 1 1 1 . . . . 1 1 1 1 . 1 . Scrap Searched 1 | . . . . . . . . . 1 . . . . Spaces Dug . | . . . . . . . . . . . . . . Terrain Destroyed 32 | . . . . . . . . . . . . 16 16 Melee . | . . . . . . . . . . . . . . Projectile . | . . . . . . . . . . . . . . AOE 32 | . . . . . . . . . . . . 16 16 Terrain Rammed . | . . . . . . . . . . . . . . Walls Destroyed . | . . . . . . . . . . . . . . Machines Disabled . | . . . . . . . . . . . . . . Actions | -11 -10 -9 -9 -8 -7 -7 -7 -6 -6 -6 -5 -4 -3 --------- Run | Scr Mat Mat Sto Mat Fac Was Fac Fac Low Low Fac Fac Res Total 4036 | 44 144 135 269 287 321 113 321 638 336 310 227 639 252 Wait 271 | . 4 21 28 43 15 7 10 75 32 8 . 28 . Move 3469 | 31 124 102 211 180 295 106 304 504 301 297 224 568 222 Hop 40 | . . . . 1 5 . 3 6 2 5 . 5 13 Pick Up 62 | 7 10 5 4 9 3 . 2 4 . . 1 13 4 Fast Attach 12 | . . . . 3 . . . 9 . . . . . Attach 45 | 6 2 2 2 9 3 . . 1 1 . 2 13 4 Detach 2 | . . . . 1 . . . . . . . 1 . Swap 11 | . . . 1 4 . . 1 3 . . . 2 . Drop 40 | . 1 . 4 19 . . 1 9 . . . 5 1 Fire 50 | . 3 5 19 12 . . . . . . . 4 7 Melee 27 | . . . . . . . . 27 . . . . . Ram . | . . . . . . . . . . . . . . Kick . | . . . . . . . . . . . . . . Crush . | . . . . . . . . . . . . . . Escape Stasis 1 | . . . . . . . . . . . . . 1 Rewire 6 | . . . . 6 . . . . . . . . . Trap . | . . . . . . . . . . . . . . Miscellaneous . | . . . . . . . . . . . . . . Route ------- -11/Scrapyard -10/Materials -9/Materials (discovered 4 exits: Mat x3 / *Sto) -9/Storage -8/Materials (discovered 3 exits: *Fac x3) -7/Factory -7/Waste -7/Factory -6/Factory -6/Lower Caves -6/Lower Caves -5/Factory -4/Factory -3/Research History --------- Turn | Location | Event 33 | -11/Scrapyard | Discovered new exit (range 14) 52 | -11/Scrapyard | Entered Materials 217 | -10/Materials | Discovered new exit (range 15) 246 | -10/Materials | Entered another Materials area 246 | -9/Materials | Evolved 2 slots: Propulsion x2 278 | -9/Materials | Identified exit to Materials 306 | -9/Materials | Build established: Mutant 399 | -9/Materials | Discovered new exit (range 5) 411 | -9/Materials | Entered Storage 524 | -9/Storage | Destroyed 7 combat bots 697 | -9/Storage | Learned location of Armory (-4) 756 | -9/Storage | Entered Materials 756 | -8/Materials | Evolved 2 slots: Propulsion x1, Utility x1 910 | -8/Materials | Identified exit to Factory 1053 | -8/Materials | Entered Factory 1053 | -7/Factory | Evolved 2 slots: Power x1, Propulsion x1 1198 | -7/Factory | Sucked down chute 1198 | -7/Factory | Entered Waste 1202 | -7/Waste | Spotted C-40 Crusher 1205 | -7/Waste | Spotted C-40 Crusher 1206 | -7/Waste | Spotted C-40 Crusher 1214 | -7/Waste | Spotted C-40 Crusher 1215 | -7/Waste | Spotted C-40 Crusher 1217 | -7/Waste | Spotted C-40 Crusher 1218 | -7/Waste | Discovered new exit (range 16) 1246 | -7/Waste | Entered Factory 1279 | -7/Factory | Build established: Scavenger-Mutant 1383 | -7/Factory | Discovered new exit (range 15) 1391 | -7/Factory | Entered another Factory area 1391 | -6/Factory | Evolved 2 slots: Propulsion x1, Utility x1 1727 | -6/Factory | Discovered new exit (range 6) 1750 | -6/Factory | Entered Lower Caves 1759 | -6/Lower Caves | Attracted the attention of an 0b10 checkpoint 1816 | -6/Lower Caves | Learned Factory garrison access intel 1849 | -6/Lower Caves | Discovered new exit (range 11) 1851 | -6/Lower Caves | Entered another Lower Caves area 1854 | -6/Lower Caves | Learned location of 1 exit from Factory 1891 | -6/Lower Caves | Attracted the attention of an 0b10 outpost 1935 | -6/Lower Caves | Discovered new exit (range 10) 1938 | -6/Lower Caves | Entered Factory 1938 | -5/Factory | Evolved 2 slots: Propulsion x1, Utility x1 1939 | -5/Factory | Identified exit to Factory 1940 | -5/Factory | Loaded intel: 4 garrison access locations 2004 | -5/Factory | Entered another Factory area 2004 | -4/Factory | Evolved 2 slots: Utility x2 2078 | -4/Factory | Fabricated E-15 Imp? 2366 | -4/Factory | Discovered new exit (range 15) 2388 | -4/Factory | Entered Research 2388 | -3/Research | Evolved 2 slots: Propulsion x1, Utility x1 2554 | -3/Research | Spotted B-86 Titan 2579 | -3/Research | Self-destructed Last Messages --------------- 02544_ Slug penetrates Wall. 02547_ Xenon Bombardment Thruster destroyed. 02551_ Imp. Hacking Suite destroyed. 02556_ Slug penetrates Wall. 02559_ Lgt. Antimatter Reactor destroyed. 02560_ K-01 Serf cleans the Terminal. 02561_ Triggered Stasis Trap. 02561_ A bubble of rippling energy engulfs the area. 02561_ Field strength at 66. 02562_ Field strength at 32. 02562_ Terminal disabled. 02562_ Imp. Light Armor Plating destroyed. 02562_ Penetrated by Slug. 02562_ Slug penetrates Wall. 02563_ Stasis field depleted. 02564_ K-01 Serf collects debris. 02577_ Penetrated by Slug. 02578_ Slug penetrates G-73 Enforcer. 02578_ Penetrated by Slug. 02578_ Slug penetrates Wall. Map ----- +----------------------------------------------------+ | ?????????????????????????????????????????????????? | | ?????????????????????????????????????????????????? | | ?????????????????????????????????????????????????? | | ?????????????????????????????????????????????????? | | ?????????????????????????????????????????????????? | | ?????????????????????????????????????????????????? | | ??????????????????????????###????????????????????? | | ???????????????????#?????? #????????????????????? | | ???????????????????# ??? #????????????????????? | | ???????????????????# " #????????????????????? | | ???????????????????# """" #????????????????????? | | ???????????????????# """" #????????????????????? | | ???????????????????# """" #????????????????????? | | ???????????????????# """" #????????????????????? | | ???????????????????# #????????????????????? | | ???????????????????# ! #????????????????????? | | ???????????????????#####+####????????????????????? | | ??????????????????????# #?#######??????????????? | | ??????????????????????# # #??????????????? | | ??????????????????????# # #??????????????? | | ??????????????????????+ + #??????????????? | | ??????????????????????# # #??????????????? | | ??????????????????????# # #??????????????? | | ??????????????????????# ############???????????? | | ??????????????????????# """ ???????????? | | ??????????????????????# @ "T"" ??????????? | | ??????????????????????# g "" ?????????? | | ????????????????????? #ggg #??????????????? | | ???????????????????? # #??????????????? | | ?????????????????? ?#hkR BB ###????????????? | | ????????????????? ???# g BB !!! #????????????? | | ?###############+######hu w !! #????????????? | | ?# w !! ###????????????? | | ?# t#??????????????? | | ?# u R #??????????????? | | ?# ???????????? | | ?# ###+########"+#############+#####??????????? | | ?# # #? ????????????????????????????? | | ## # # ????????????????????????????? | | # "" # ???????????????????????????? | | # """# ???????????????????????????? | | # F"#########??????????????????????????? | | # """#??????????????????????????????????? | | ####### "" #??????????????????????????????????? | | ??????# #??????????????????????????????????? | | ??????# #??????????????????????????????????? | | ??????# #??????????????????????????????????? | | ###???# #??????????????????????????????????? | | #???#########??????????????????????????????????? | | #??????????????????????????????????????????????? | +----------------------------------------------------+ Best States ------------- Heat Dissipation 73 Energy Generation 39 Energy Capacity 480 Matter Stores 300 Matter Capacity 300 Sight Range 16 Robot Scan Range 16 Terrain Scan Density 10 Power Amplification 20 Additional Mass Support 18 Armor Coverage 150 Resistance: KI 20 Resistance: TH 20 Resistance: EX 20 Resistance: EM 20 Resistance: I 20 Resistance: S 20 Resistance: P 20 Evasion (%) 75 Offensive Hacking 22 Item Schematics ----------------- None Robot Schematics ------------------ None Fabricated ------------ E-15 Imp | x2 | -4/Factory | Preloaded Alien Tech Used ----------------- None Achievements -------------- GoHome() My Command Is Your Wish Challenges ------------ None Game ------ Seed TiamatHeatReactor Manual? 0 Play Time 00:59:15 Cumulative 48.2 hours Start 2022.01.20 @ 12:08:42 End 2022.01.20 @ 13:13:05 Sessions 1 Manual Loads 0 Difficulty Adventurer Special Mode None Game No. 56 Rogue 12 Adventurer 2 Explorer 42 Win Type - Total 4 Types 4/0/0/0/0/0/0/0/0 Lore% 29 Gallery% 45 Achievement% 36 Wizard Run 0 Options --------- ASCII 0 Keyboard 0 Movement Numpad Keybinds 0 Fullscreen 1 Font 12/Smallcaps Map View 83x54 Tactical HUD 1 Map Filters NONE Filters NONE Steam 1 RUN: 5fc79d56-9dbe-49ce-a0b3-28d7b6607d15